fUSD/lending_fUSD_20240324
["ID","MTS","AMOUNT","RATE_DAILY","PERIOD"]
[320337419,1711309877472,-500.0,0.00027397,13]
[320337420,1711309877495,-500.0,0.00027397,13]
[320337421,1711309877522,-500.0,0.00027397,13]
[320337422,1711309877545,-500.0,0.00027397,13]
[320337423,1711309877567,-500.0,0.00027397,13]
[320337424,1711309877590,-502.0,0.00027397,30]
[320337425,1711309877613,-500.0,0.00027397,13]
[320337426,1711309877635,-500.0,0.00027397,13]
[320337427,1711309877657,-500.0,0.00027397,13]
[320337428,1711309877679,-500.0,0.00027397,13]
[320337429,1711309877700,-500.0,0.00027397,13]
[320337430,1711309877723,-500.0,0.00027397,13]
[320337431,1711309877746,-500.0,0.00027397,13]
[320337432,1711309877772,-500.0,0.00027397,13]
[320337433,1711309877795,-500.0,0.00027397,13]
[320337434,1711309877820,-500.0,0.00027397,13]
[320337435,1711309877843,-500.0,0.00027397,13]
[320337436,1711309877867,-500.0,0.00027397,13]
[320337437,1711309877890,-500.0,0.00027397,13]
[320337438,1711309877913,-500.0,0.00027397,13]
[320337439,1711309877934,-500.0,0.00027397,13]
[320337440,1711309877959,-500.0,0.00027397,13]
[320337441,1711309877982,-500.0,0.00027397,13]
[320337442,1711309878004,-500.0,0.00027397,13]
[320337443,1711309878027,-500.0,0.00027397,13]
[320337444,1711309878050,-500.0,0.00027397,13]
[320337445,1711309878072,-500.0,0.00027397,13]
[320337446,1711309878095,-500.0,0.00027397,13]
[320337447,1711309878117,-500.0,0.00027397,13]
[320337448,1711309878141,-500.0,0.00027397,13]
[320337449,1711309878164,-500.0,0.00027397,13]
[320337450,1711309878187,-500.0,0.00027397,13]
[320337451,1711309878211,-500.0,0.00027397,13]
[320337452,1711309878233,-500.0,0.00027397,13]
[320337453,1711309878255,-500.0,0.00027397,13]
[320337454,1711309878282,-500.0,0.00027397,13]
[320337455,1711309878306,-500.0,0.00027397,13]
[320337456,1711309878333,-500.0,0.00027397,13]
[320337457,1711309878356,-500.0,0.00027397,13]
[320337458,1711309878378,-500.0,0.00027397,13]
[320337459,1711309878401,-500.0,0.00027397,13]
[320337460,1711309878423,-500.0,0.00027397,13]
[320337461,1711309878446,-500.0,0.00027397,13]
[320337462,1711309878470,-500.0,0.00027397,13]
[320337463,1711309878493,-500.0,0.00027397,13]
[320337464,1711309878520,-235.0,0.00027397,13]
[320337465,1711309878545,-500.0,0.00027397,13]
[320337466,1711309878570,-500.0,0.00027397,13]
[320337467,1711309878592,-500.0,0.00027397,13]
[320337468,1711309878615,-500.0,0.00027397,30]
[320337469,1711309878638,-500.0,0.00027397,30]
[320337470,1711309878661,-500.0,0.00027397,30]
[320337471,1711309878683,-505.0,0.00027397,30]
[320337472,1711309878705,-2912.33,0.00027397,10]
[320337473,1711309878728,-500.0,0.00027397,13]
[320337474,1711309878751,-300.0,0.00027397,10]
[320337475,1711309878778,-300.0,0.00027397,10]
[320337476,1711309878801,-300.0,0.00027397,10]
[320337477,1711309878825,-300.0,0.00027397,10]
[320337478,1711309878848,-300.0,0.00027397,10]
[320337479,1711309878874,-300.0,0.00027397,10]
[320337480,1711309878897,-300.0,0.00027397,10]
[320337481,1711309878920,-300.0,0.00027397,10]
[320337482,1711309878943,-300.0,0.00027397,10]
[320337483,1711309878967,-300.0,0.00027397,10]
[320337484,1711309878990,-300.0,0.00027397,10]
[320337485,1711309879015,-300.0,0.00027397,10]
[320337486,1711309879037,-300.0,0.00027397,10]
[320337487,1711309879060,-317.75915772,0.00027397,10]
[320337488,1711309879082,-530.0,0.000274,15]
[320337489,1711309879105,-500.0,0.000274,7]
[320337490,1711309879313,-500.0,0.000274,7]
[320337491,1711309879343,-500.0,0.000274,7]
[320337492,1711309879366,-500.0,0.000274,7]
[320337493,1711309879396,-500.0,0.000274,7]
[320337494,1711309879423,-500.0,0.000274,7]
[320337495,1711309879448,-500.0,0.000274,7]
[320337496,1711309879475,-152.0,0.00027491,31]
[320337497,1711309879500,-1058.6,0.000276,17]
[320337498,1711309879525,-1000.0,0.0002763,7]
[320337499,1711309879549,-150.0,0.00027646,120]
[320337500,1711309879572,-152.0,0.00027687,32]
[320337501,1711309879596,-500.0,0.000277,60]
[320337502,1711309879621,-152.0,0.00027882,33]
[320337503,1711309879643,-530.0,0.000279,16]
[320337504,1711309879666,-1000.0,0.00027922,7]
[320337505,1711309879689,-1253.6,0.00028,21]
[320337506,1711309879712,-167.02218935,0.00028,120]
[320337507,1711309879735,-850.0,0.00028,16]
[320337508,1711309879759,-600.0,0.00028,29]
[320337509,1711309879785,-152.0,0.00028077,34]
[320337510,1711309879808,-1585.6,0.000281,10]
[320337511,1711309879832,-500.0,0.000282,7]
[320337512,1711309879859,-2000.0,0.000282,120]
[320337513,1711309879883,-1000.0,0.00028213,7]
[320337514,1711309879907,-152.0,0.00028272,35]
[320337515,1711309879930,-11112.07922008,0.00028297,120]
[320337516,1711309879954,-530.0,0.000284,17]
[320337517,1711309879976,-152.0,0.00028467,36]
[320337518,1711309879999,-37797.05531806,0.000285,120]
[320337519,1711309880025,-1000.0,0.00028505,7]
[320337520,1711309880048,-152.0,0.00028662,37]
[320337521,1711309880071,-1000.0,0.00028796,7]
[320337522,1711309880095,-150.0,0.00028855,120]
[320337523,1711309880119,-152.0,0.00028857,38]
[320337524,1711309880143,-3413.93221752,0.000289,5]
[320337525,1711309880167,-530.0,0.000289,17]
[320337526,1711309880192,-600.0,0.00029,30]
[320337527,1711309880217,-161.30583457,0.00029,120]
[320337528,1711309880245,-152.0,0.00029052,39]
[320337529,1711309880270,-1000.0,0.00029088,7]
[320337530,1711309880295,-152.0,0.00029247,40]
[320337531,1711309880319,-1000.0,0.00029379,7]
[320337532,1711309880343,-530.0,0.000294,18]
[320337533,1711309880367,-152.0,0.00029442,41]
[320337534,1711309880392,-152.0,0.00029637,42]
[320337535,1711309880416,-1000.0,0.00029671,7]
[320337536,1711309880441,-9012.09264376,0.00029784,30]
[320337537,1711309880466,-152.0,0.00029832,43]
[320337538,1711309880490,-530.0,0.000299,18]
[320337539,1711309880516,-1000.0,0.00029962,7]
[320337540,1711309880540,-1494.39196268,0.0003,5]
[320337541,1711309880568,-3335.4410273,0.0003,10]
[320337542,1711309880592,-850.0,0.0003,30]
[320337543,1711309880617,-600.0,0.0003,31]
[320337544,1711309880641,-791.69169699,0.0003,30]
[320337545,1711309880664,-569.7719041,0.0003,7]
[320337546,1711309880688,-1580.85,0.0003,21]
[320337547,1711309880711,-185.9617241,0.0003,7]
[320337548,1711309880733,-10000.0,0.0003,5]
[320337549,1711309880758,-38696.57110636,0.0003,30]
[320337550,1711309880784,-200.0,0.0003,7]
[320337551,1711309880807,-200.0,0.0003,7]
[320337552,1711309880831,-200.0,0.0003,7]
[320337553,1711309880856,-201.48358285,0.0003,7]
[320337554,1711309880880,-1000.0,0.0003,120]
[320337555,1711309880905,-165.33093654,0.00030025,7]
[320337556,1711309880929,-152.0,0.00030027,44]
[320337557,1711309880954,-150.0,0.0003008,120]
[320337558,1711309880978,-771.66658802,0.00030121,7]
[320337559,1711309881003,-160.07391968,0.00030131,7]
[320337560,1711309881029,-151.68842336,0.00030137,7]
[320337561,1711309881054,-150.0,0.0003017,120]
[320337562,1711309881078,-154.72345592,0.00030175,7]
[320337563,1711309881102,-500.0,0.0003022,90]
[320337564,1711309881127,-152.0,0.00030222,45]
[320337565,1711309881151,-1000.0,0.00030254,7]
[320337566,1711309881175,-662.1992103,0.00030285,7]
[320337567,1711309881200,-771.66658802,0.00030317,7]
[320337568,1711309881224,-530.0,0.000304,19]
[320337569,1711309881249,-152.0,0.00030417,46]
[320337570,1711309881277,-587.97822567,0.00030454,10]
[320337571,1711309881304,-1000.0,0.00030545,7]
[320337572,1711309881343,-152.0,0.00030612,47]
[320337573,1711309881371,-261.88355524,0.00030612,5]
[320337574,1711309881397,-182.34054979,0.00030633,7]
[320337575,1711309881422,-150.94788018,0.00030654,7]
[320337576,1711309881446,-16688.0680917,0.00030781,7]
[320337577,1711309881472,-370465.428321,0.00030781,7]
[320337578,1711309881497,-1000.0,0.00030836,7]
[320337579,1711309881522,-874.9691531,0.000309,30]
[320337580,1711309881547,-530.0,0.000309,19]
[320337581,1711309881574,-218.23957333,0.0003093,7]
[320337582,1711309881600,-182.34054979,0.00030933,7]
[320337583,1711309881625,-154.88236009,0.00030945,7]
[320337584,1711309881651,-242.90221771,0.00030974,7]
[320337585,1711309881675,-500.0,0.00031,30]
[320337586,1711309881698,-500.59854898,0.00031,30]
[320337587,1711309881722,-600.0,0.00031,32]
[320337588,1711309881746,-150.94788018,0.00031062,7]
[320337589,1711309881774,-604.0,0.00031076,7]
[320337590,1711309881801,-154.72345592,0.00031079,7]
[320337591,1711309881827,-242.90221771,0.00031106,7]
[320337592,1711309881851,-1000.0,0.00031128,7]
[320337593,1711309882056,-170.18445164,0.00031155,7]
[320337594,1711309882081,-166.66666667,0.00031174,7]
[320337595,1711309882105,-151.68842336,0.00031181,7]
[320337596,1711309882130,-154.72345592,0.00031228,7]
[320337597,1711309882154,-218.23957333,0.00031252,7]
[320337598,1711309882180,-182.34054979,0.00031263,7]
[320337599,1711309882202,-152.79300413,0.00031343,7]
[320337600,1711309882224,-530.0,0.000314,20]
[320337601,1711309882247,-154.3652704,0.00031416,7]
[320337602,1711309882272,-1000.0,0.00031419,7]
[320337603,1711309882295,-5010.0,0.00031463,7]
[320337604,1711309882320,-168.3221185,0.00031637,7]
[320337605,1711309882343,-1000.0,0.00031711,7]
[320337606,1711309882368,-242.90221771,0.00031748,7]
[320337607,1711309882396,-1208.0,0.00031863,30]
[320337608,1711309882420,-715.937357,0.000319,20]
[320337609,1711309882446,-2804.5639989,0.00031901,10]
[320337610,1711309882470,-450.63728401,0.00031901,10]
[320337611,1711309882493,-2629.03171377,0.00031904,10]
[320337612,1711309882518,-765.14193646,0.00031906,10]
[320337613,1711309882543,-443.31897312,0.00031906,10]
[320337614,1711309882566,-9613.91495064,0.00031909,10]
[320337615,1711309882589,-2463.64078996,0.0003191,10]
[320337616,1711309882611,-2824.45140066,0.0003191,10]
[320337617,1711309882634,-2943.36717431,0.00031912,10]
[320337618,1711309882656,-2827.62462059,0.00031912,10]
[320337619,1711309882679,-1535.26971951,0.00031913,10]
[320337620,1711309882702,-2782.44911778,0.00031914,10]
[320337621,1711309882724,-2252.59914074,0.00031915,10]
[320337622,1711309882751,-2812.73178551,0.00031916,10]
[320337623,1711309882777,-2943.46030723,0.00031918,10]
[320337624,1711309882801,-448.08837531,0.0003192,10]
[320337625,1711309882826,-450.99439702,0.0003192,10]
[320337626,1711309882851,-2652.95344586,0.0003192,10]
[320337627,1711309882875,-2272.13493109,0.00031921,10]
[320337628,1711309882897,-9607.61084723,0.00031921,10]
[320337629,1711309882921,-300.87509496,0.00031922,10]
[320337630,1711309882944,-2945.54678316,0.00031926,10]
[320337631,1711309882967,-2941.88883377,0.00031928,10]
[320337632,1711309882990,-2827.40110609,0.00031928,10]
[320337633,1711309883013,-150.0,0.00031928,10]
[320337634,1711309883037,-2797.12091285,0.00031929,10]
[320337635,1711309883061,-2625.90562055,0.0003193,10]
[320337636,1711309883085,-1616.27605551,0.00031931,10]
[320337637,1711309883108,-150.0,0.00031931,120]
[320337638,1711309883130,-2284.94899523,0.00031933,10]
[320337639,1711309883152,-2857.36531553,0.00031933,10]
[320337640,1711309883174,-2790.52565172,0.00031934,10]
[320337641,1711309883197,-2790.27962432,0.00031934,10]
[320337642,1711309883220,-2959.78097212,0.00031936,10]
[320337643,1711309883244,-2941.97595757,0.00031937,10]
[320337644,1711309883269,-2812.27327412,0.00031938,10]
[320337645,1711309883292,-2806.2168281,0.0003194,10]
[320337646,1711309883317,-2788.03985784,0.00031941,10]
[320337647,1711309883340,-445.10215928,0.00031943,10]
[320337648,1711309883363,-9623.65901677,0.00031943,10]
[320337649,1711309883387,-2590.38023188,0.00031944,10]
[320337650,1711309883412,-2648.32030727,0.00031946,10]
[320337651,1711309883436,-2254.8809089,0.00031951,10]
[320337652,1711309883460,-9634.39173502,0.00031952,10]
[320337653,1711309883483,-2793.00734887,0.00031954,10]
[320337654,1711309883507,-9635.50280444,0.0003196,10]
[320337655,1711309883532,-2776.86580995,0.00031961,10]
[320337656,1711309883557,-2807.75947038,0.00031961,10]
[320337657,1711309883580,-2728.01118994,0.00031963,10]
[320337658,1711309883603,-2663.1792928,0.00031964,10]
[320337659,1711309883627,-2952.15749545,0.00031965,10]
[320337660,1711309883650,-771.66658802,0.00031967,7]
[320337661,1711309883672,-2947.88064436,0.00031968,10]
[320337662,1711309883695,-2638.33782991,0.00031969,10]
[320337663,1711309883718,-2880.44825377,0.00031977,10]
[320337664,1711309883740,-9745.35357193,0.00031977,10]
[320337665,1711309883763,-2809.56847531,0.00031978,10]
[320337666,1711309883792,-2942.27180056,0.00031979,10]
[320337667,1711309883814,-2794.73066269,0.0003198,10]
[320337668,1711309883836,-2840.57788438,0.00031981,10]
[320337669,1711309883862,-9605.92837868,0.00031982,10]
[320337670,1711309883885,-2798.0653247,0.00031984,10]
[320337671,1711309883907,-2781.59091883,0.00031986,10]
[320337672,1711309883930,-2805.85507777,0.00031986,10]
[320337673,1711309883955,-9667.66410452,0.00031986,10]
[320337674,1711309883977,-2651.28728287,0.00031986,10]
[320337675,1711309884000,-218.23957333,0.00031986,7]
[320337676,1711309884026,-9626.42172006,0.00031987,10]
[320337677,1711309884048,-476.03691534,0.0003199,10]
[320337678,1711309884072,-2944.18062696,0.00031991,10]
[320337679,1711309884095,-2627.82165468,0.00031992,10]
[320337680,1711309884118,-2945.45072983,0.00031993,10]
[320337681,1711309884140,-2812.00322605,0.00031993,10]
[320337682,1711309884163,-2261.11618259,0.00031994,10]
[320337683,1711309884185,-2304.85948585,0.00031994,10]
[320337684,1711309884208,-9651.59419731,0.00031996,10]
[320337685,1711309884231,-2946.25507442,0.00031999,10]
[320337686,1711309884255,-600.0,0.00032,33]
[320337687,1711309884279,-450.0,0.00032,41]
[320337688,1711309884303,-850.12,0.00032,25]
[320337689,1711309884328,-1500.0,0.00032,10]
[320337690,1711309884353,-10000.0,0.00032,7]
[320337691,1711309884379,-150000.0,0.00032,30]
[320337692,1711309884405,-1000.0,0.00032002,7]
[320337693,1711309884432,-182.34054979,0.00032036,7]
[320337694,1711309884457,-151.68842336,0.00032043,7]
[320337695,1711309884481,-1258.6,0.000321,21]
[320337696,1711309884689,-771.66658802,0.00032118,7]
[320337697,1711309884715,-662.1992103,0.00032186,7]
[320337698,1711309884738,-158.09371514,0.00032254,7]
[320337699,1711309884764,-168.32211851,0.00032264,7]
[320337700,1711309884789,-771.66658802,0.00032273,7]
[320337701,1711309884814,-1000.0,0.00032294,7]
[320337702,1711309884838,-157.00640378,0.00032327,7]
[320337703,1711309884865,-150.0,0.00032359,120]
[320337704,1711309884888,-166.48675381,0.0003236,7]
[320337705,1711309884911,-662.1992103,0.00032367,7]
[320337706,1711309884935,-159.33280242,0.00032384,7]
[320337707,1711309884957,-182.34054979,0.00032389,7]
[320337708,1711309884980,-166.66666667,0.0003239,7]
[320337709,1711309885003,-662.1992103,0.00032392,7]
[320337710,1711309885027,-242.90221771,0.00032397,7]
[320337711,1711309885051,-150.0,0.00032426,120]
[320337712,1711309885075,-175.96604202,0.00032572,7]
[320337713,1711309885098,-1000.0,0.00032585,7]
[320337714,1711309885121,-500.0,0.0003274,120]
[320337715,1711309885144,-218.23957333,0.00032772,7]
[320337716,1711309885168,-150.94788018,0.00032842,7]
[320337717,1711309885194,-1619.97796607,0.00032877,7]
[320337718,1711309885217,-3549.75727686,0.000329,30]
[320337719,1711309885242,-162.35778914,0.0003291,7]
[320337720,1711309885266,-662.1992103,0.00032916,7]
[320337721,1711309885290,-159.33280242,0.00033027,7]
[320337722,1711309885316,-150.94788018,0.00033066,7]
[320337723,1711309885341,-150.0,0.00033107,120]
[320337724,1711309885367,-154.72345592,0.00033162,7]
[320337725,1711309885392,-159.33280242,0.00033236,7]
[320337726,1711309885416,-166.66666667,0.00033248,7]
[320337727,1711309885442,-159.33280242,0.00033251,7]
[320337728,1711309885466,-771.66658802,0.00033266,7]
[320337729,1711309885491,-662.1992103,0.00033315,7]
[320337730,1711309885518,-151.82741645,0.00033585,5]
[320337731,1711309885542,-159.33280242,0.00033616,7]
[320337732,1711309885567,-151.68842336,0.00033665,7]
[320337733,1711309885593,-150.0,0.00033817,120]
[320337734,1711309885617,-150.94788018,0.00033885,7]
[320337735,1711309885646,-850.0,0.00034,34]
[320337736,1711309885671,-12764.62753956,0.00034,7]
[320337737,1711309885696,-10013.28741301,0.00034,7]
[320337738,1711309885721,-150.0,0.0003407,120]
[320337739,1711309885747,-2000.0,0.000341,120]
[320337740,1711309885773,-771.66658802,0.00034167,7]
[320337741,1711309885798,-150.0,0.00034195,120]
[320337742,1711309885823,-151.06956234,0.00034336,7]
[320337743,1711309885848,-150.0,0.00034358,120]
[320337744,1711309885871,-154.72345592,0.00034372,7]
[320337745,1711309885895,-242.90221771,0.00034422,7]
[320337746,1711309885918,-160.07391969,0.00034463,7]
[320337747,1711309885946,-159.33280242,0.00034542,7]
[320337748,1711309885970,-150.0,0.00034548,10]
[320337749,1711309885995,-150.0,0.00034567,120]
[320337750,1711309886018,-151.82741645,0.00034585,9]
[320337751,1711309886042,-150.94788018,0.00034616,7]
[320337752,1711309886067,-242.90221771,0.00034618,7]
[320337753,1711309886090,-154.6821531,0.00034689,7]
[320337754,1711309886115,-182.34054979,0.00034754,7]
[320337755,1711309886139,-152.79300413,0.00034759,7]
[320337756,1711309886165,-242.90221771,0.00034762,7]
[320337757,1711309886190,-151.68842336,0.00034824,7]
[320337758,1711309886214,-182.34054979,0.00034862,7]
[320337759,1711309886240,-662.1992103,0.0003487,7]
[320337760,1711309886267,-662.1992103,0.00034872,7]
[320337761,1711309886295,-154.6821531,0.00034955,7]
[320337762,1711309886320,-771.66658802,0.00034974,7]
[320337763,1711309886346,-154.3652704,0.00034989,7]
[320337764,1711309886371,-166.52535599,0.00034997,7]
[320337765,1711309886399,-200000.0,0.00035,15]
[320337766,1711309886424,-10000.0,0.00035,13]
[320337767,1711309886449,-2100.0,0.00035,14]
[320337768,1711309886474,-554.85,0.00035,10]
[320337769,1711309886501,-159.33280242,0.00035138,7]
[320337770,1711309886526,-154.72345592,0.0003515,7]
[320337771,1711309886551,-4271.74,0.00035288,15]
[320337772,1711309886577,-150.94788018,0.00035323,7]
[320337773,1711309886602,-218.23957333,0.0003536,7]
[320337774,1711309886626,-150.94788018,0.0003541,7]
[320337775,1711309886650,-154.88236016,0.00035568,7]
[320337776,1711309886675,-151.82741645,0.00035585,13]
[320337777,1711309886698,-159.33280242,0.00035603,7]
[320337778,1711309886722,-9420.77,0.00035616,7]
[320337779,1711309886746,-218.23957333,0.00035656,7]
[320337780,1711309886774,-75701.74179148,0.000357,7]
[320337781,1711309886798,-154.72345592,0.00035793,7]
[320337782,1711309886823,-10014.12090333,0.000358,5]
[320337783,1711309886847,-25890.04528107,0.000358,30]
[320337784,1711309886876,-151.68842336,0.00035835,7]
[320337785,1711309886912,-218.23957333,0.00035914,7]
[320337786,1711309886940,-154.72345592,0.00035923,7]
[320337787,1711309886966,-159.33280242,0.0003599,7]
[320337788,1711309886993,-200000.0,0.00036,16]
[320337789,1711309887019,-550.0,0.00036,36]
[320337790,1711309887044,-150000.0,0.00036,40]
[320337791,1711309887067,-50000.0,0.00036,7]
[320337792,1711309887092,-1500.0,0.0003608,14]
[320337793,1711309887116,-166.52535601,0.00036147,7]
[320337794,1711309887140,-150.94788018,0.00036156,7]
[320337795,1711309887164,-150.94788018,0.00036168,7]
[320337796,1711309887420,-662.1992103,0.0003617,7]
[320337797,1711309887446,-154.98817415,0.00036205,7]
[320337798,1711309887470,-154.68215313,0.00036216,7]
[320337799,1711309887494,-218.23957333,0.00036228,7]
[320337800,1711309887521,-153.37036531,0.00036254,7]
[320337801,1711309887545,-218.23957333,0.00036327,7]
[320337802,1711309887570,-154.3652704,0.0003633,7]
[320337803,1711309887594,-159.33280242,0.00036358,7]
[320337804,1711309887618,-150.0,0.00036403,120]
[320337805,1711309887642,-242.90221771,0.00036407,7]
[320337806,1711309887665,-155.2,0.00036438,46]
[320337807,1711309887689,-155.2,0.00036438,90]
[320337808,1711309887713,-218.23957333,0.00036451,7]
[320337809,1711309887737,-218.23957333,0.00036551,7]
[320337810,1711309887759,-151.82741645,0.00036585,18]
[320337811,1711309887787,-159.33280242,0.00036634,7]
[320337812,1711309887811,-159.33280242,0.00036796,7]
[320337813,1711309887834,-166.66666668,0.00036801,7]
[320337814,1711309887858,-771.66658802,0.00036815,7]
[320337815,1711309887882,-150.94788018,0.00036831,7]
[320337816,1711309887905,-242.90221771,0.00036837,7]
[320337817,1711309887930,-166.69393314,0.00036905,7]
[320337818,1711309887956,-242.90221771,0.00036914,7]
[320337819,1711309887979,-150.94788018,0.00036942,7]
[320337820,1711309888001,-151.06956234,0.00036971,7]
[320337821,1711309888034,-158715.59506645,0.00037,17]
[320337822,1711309897653,-285047.54818746,0.0002498,5]
[320337823,1711309897678,-424.32866823,0.00025,30]
[320337824,1711309897734,-3009.41,0.00027397,10]
[320337825,1711309897760,-2507.84,0.00027397,10]
[320337826,1711309897788,-2089.87,0.00027397,10]
[320337827,1711309897839,-41284.40493355,0.00037,17]
[320337828,1711309898049,-135724.5379636,0.00037,30]
[320337829,1711309898078,-300.0,0.00037,7]
[320337830,1711309898102,-175.96604204,0.00037028,7]
[320337831,1711309898127,-159.33280242,0.00037042,7]
[320337832,1711309898152,-168.26745996,0.00037141,7]
[320337833,1711309898177,-771.66658802,0.00037158,7]
[320337834,1711309898201,-159.33280242,0.00037264,7]
[320337835,1711309898226,-771.66658802,0.00037293,7]
[320337836,1711309898250,-151.68842336,0.0003733,7]
[320337837,1711309898274,-182.34054979,0.00037333,7]
[320337838,1711309898302,-218.23957333,0.00037403,7]
[320337839,1711309898328,-182.34054979,0.00037406,7]
[320337840,1711309898354,-168.01315933,0.0003745,10]
[320337841,1711309898379,-170.18445164,0.00037469,7]
[320337842,1711309898404,-662.1992103,0.00037591,7]
[320337843,1711309898429,-182.34054979,0.000376,7]
[320337844,1711309898454,-159.33280242,0.00037603,7]
[320337845,1711309898478,-662.1992103,0.00037643,7]
[320337846,1711309898503,-771.66658802,0.00037659,7]
[320337847,1711309898529,-170.18445167,0.00037692,7]
[320337848,1711309898554,-166.66666667,0.00037733,7]
[320337849,1711309898578,-771.66658802,0.00037825,7]
[320337850,1711309898604,-771.66658802,0.00037923,7]
[320337851,1711309898628,-154.72345592,0.0003794,7]
[320337852,1711309898653,-150.0,0.00037964,120]
[320337853,1711309898677,-662.1992103,0.00037997,7]
[320337854,1711309898702,-200000.0,0.00038,18]
[320337855,1711309898726,-9689.81207114,0.00038,5]
[320337856,1711309898750,-8577.1525571,0.00038,40]
[320337857,1711309898775,-13302.5912875,0.00038,15]
[320337858,1711309898802,-927.87,0.00038,30]
[320337859,1711309898828,-500.0,0.00038,10]
[320337860,1711309898854,-30329.97848922,0.00038,120]
[320337861,1711309898879,-12000.0,0.00038,5]
[320337862,1711309898905,-242.90221771,0.00038022,7]
[320337863,1711309898931,-4271.74,0.00038027,15]
[320337864,1711309898958,-771.66658802,0.00038077,7]
[320337865,1711309898983,-150.0,0.0003808,120]
[320337866,1711309899008,-1000.0,0.000381,30]
[320337867,1711309899034,-150.0,0.00038101,120]
[320337868,1711309899060,-182.34054999,0.0003816,7]
[320337869,1711309899087,-165.84467193,0.00038228,7]
[320337870,1711309899111,-154.72345592,0.00038311,7]
[320337871,1711309899137,-150.0,0.00038319,120]
[320337872,1711309899162,-9420.77,0.00038356,17]
[320337873,1711309899703,1121.3816996,0.0002,10]
[320337874,1711309908297,3335.89851673,0.0003,10]
[320337875,1711309984936,168.0,0.00025202,120]
[320337877,1711310014146,259.98318937,0.00025202,120]
[320337880,1711310069285,478.18627343,0.0002517,120]
[320337883,1711310075093,186.13124721,0.0002517,30]
[320337884,1711310075777,289.12204406,0.0002517,120]
[320337887,1711310077451,230.24185113,0.0002517,120]
[320337899,1711310183289,511.76258371,0.0002517,30]
[320337984,1711310951112,-155.0,0.00014811,2]
[320337985,1711310951132,-776.71802099,0.00014811,2]
[320337986,1711310951154,-618.08016237,0.00014812,2]
[320337987,1711310951175,-198.61481664,0.00014815,2]
[320338003,1711311032231,-342.35518336,0.00014815,2]
[320338004,1711311032242,-206.41970426,0.0001521,2]
[320338006,1711311032253,-107.71665238,0.00016399,2]
[320338013,1711311032332,-476.95871562,0.00016399,2]
[320338015,1711311032344,-204.38,0.00016481,2]
[320338017,1711311032357,-292.31,0.00016544,3]
[320338019,1711311032369,-167.0,0.0001658,2]
[320338021,1711311032380,-150.0,0.0001658,2]
[320338022,1711311032392,-15400.29,0.00016581,2]
[320338024,1711311032403,-250.0,0.00016581,2]
[320338026,1711311032419,-751.3,0.00016591,2]
[320338027,1711311032431,-250.0,0.00016608,2]
[320338028,1711311032442,-344.32,0.00016691,2]
[320338029,1711311032454,-344.92,0.00016695,2]
[320338030,1711311032465,-150.99,0.00016695,2]
[320338031,1711311032477,-415.44,0.00017078,2]
[320338032,1711311032489,-415.44,0.00017078,2]
[320338033,1711311032501,-540.97,0.00017079,2]
[320338034,1711311032513,-184.63,0.00017175,2]
[320338035,1711311032525,-655.68,0.00017175,2]
[320338036,1711311032537,-415.44,0.00017278,2]
[320338037,1711311032548,-415.44,0.00017378,2]
[320338038,1711311032560,-3685.787,0.00017619,2]
[320338039,1711311032571,-4761.0,0.00017669,2]
[320338040,1711311032582,-40317.315,0.00017669,2]
[320338041,1711311032594,-3826.76040158,0.00017699,2]
[320338042,1711311032605,-415.44,0.000177,2]
[320338043,1711311032617,-37543.2864,0.000177,2]
[320338044,1711311032628,-629.83,0.000177,2]
[320338045,1711311032640,-309.50192314,0.00017798,2]
[320338046,1711311032651,-364.3344,0.000178,2]
[320338047,1711311032663,-102148.3168,0.000178,2]
[320338048,1711311032675,-25294.6938,0.000178,2]